fUSD/lending_fUSD_20240714
["ID","MTS","AMOUNT","RATE_DAILY","PERIOD"]
[332088744,1720954268209,-250.0,0.00012662,2]
[332088745,1720954268219,-84.58939694,0.00013698,2]
[332088746,1720954268231,-415.41060306,0.00013698,2]
[332088747,1720954268241,-370.83939694,0.00013753,2]
[332088748,1720954268263,-129.16060306,0.00013753,2]
[332088749,1720954268272,-461.65939694,0.00013753,2]
[332088750,1720954268284,-38.34060306,0.00013753,2]
[332088751,1720954268294,-500.0,0.00013753,2]
[332088752,1720954268303,-500.0,0.00013808,2]
[332088753,1720954268313,-500.0,0.00013808,2]
[332088754,1720954268322,-500.0,0.00013808,2]
[332088755,1720954268332,-500.0,0.00013863,2]
[332088756,1720954268342,-500.0,0.00013863,2]
[332088757,1720954268353,-500.0,0.00013863,2]
[332088758,1720954268363,-500.0,0.00013917,2]
[332088759,1720954268373,-500.0,0.00013917,2]
[332088760,1720954268383,-500.0,0.00013917,2]
[332088761,1720954268392,-281.86725037,0.00013972,2]
[332088762,1720954268402,-468.17371514,0.00013972,2]
[332088763,1720954268411,-500.0,0.00013972,2]
[332088764,1720954268420,-500.0,0.00013972,2]
[332088765,1720954268429,-500.0,0.00013972,2]
[332088766,1720954268438,-167.10704674,0.00013972,2]
[332088767,1720954268449,-332.89295326,0.00013972,2]
[332088768,1720954268459,-500.0,0.00013972,2]
[332088769,1720954268469,-500.0,0.00013972,2]
[332088770,1720954268479,-500.0,0.00013972,2]
[332088771,1720954268488,-500.0,0.00013972,2]
[332088772,1720954268497,-380.35323653,0.00013972,2]
[332088773,1720954268509,-119.64676347,0.00013972,2]
[332088774,1720954268519,-500.0,0.00013972,2]
[332088775,1720954268529,-500.0,0.00013972,2]
[332088776,1720954268538,-500.0,0.00013972,2]
[332088777,1720954268548,-500.0,0.00013972,2]
[332088778,1720954268557,-500.0,0.00013972,2]
[332088779,1720954268566,-3257.84182916,0.00013972,2]
[332088780,1720954268582,-1.89817084,0.00013972,2]
[332088781,1720954268592,-500.0,0.00013972,2]
[332088782,1720954268601,-497.6018285,0.00013972,2]
[332088783,1720954268613,-2.3981715,0.00013972,2]
[332088784,1720954268623,-310.38186282,0.00013972,2]
[332088785,1720954268640,-189.61813718,0.00013972,2]
[332088786,1720954268650,-594.97,0.00013972,2]
[332088787,1720954268661,-500.0,0.00013972,2]
[332088788,1720954268671,-500.0,0.00013972,2]
[332088789,1720954268681,-500.0,0.00013972,2]
[332088790,1720954268691,-233.2977903,0.00013973,3]
[332088791,1720954268703,-644.28818466,0.00013973,3]
[332088792,1720954268714,-988.272859,0.00013973,3]
[332088793,1720954268727,-134.14116604,0.00013973,3]
[332088794,1720954268738,-235.56257113,0.00013989,2]
[332088795,1720954268748,-1107.57059186,0.00013996,2]
[332088796,1720954268759,-2106.07101249,0.00013996,2]
[332088797,1720954268770,-5770.89999999,0.00013996,2]
[332088798,1720954268787,-611.25730848,0.00013996,2]
[332088799,1720954268799,-1651.07245401,0.00013996,2]
[332088800,1720954268810,-726.56290507,0.00013996,2]
[332088801,1720954268819,-167.03613192,0.00013996,2]
[332088802,1720954268831,-3259.05753208,0.00013996,2]
[332088803,1720954268841,-37183.63826025,0.00013996,2]
[332088804,1720954276971,301.2901,0.00010998,2]
[332088805,1720954299224,1589.7763,0.00010997,2]
[332088806,1720954398679,3000.0,0.00025549,120]
[332088816,1720954611902,220.96217277,0.0001077,2]
[332088817,1720954611927,85.30782723,0.0001077,2]
[332088818,1720954619710,157.071419,0.00025,74]
[332088819,1720954623613,157.071419,0.00025,75]
[332088820,1720954628942,157.071419,0.00025,76]
[332088827,1720954778408,635.34536723,0.00010998,2]
[332088828,1720954842885,1000.0,0.00025,60]
[332088829,1720954862748,2000.0,0.00025,60]
[332088872,1720955213581,290.95,0.0001027,2]
[332088886,1720955367263,2748.74788278,0.00027,120]
[332088890,1720955432413,-300.0,0.00011097,2]
[332088891,1720955432423,-5096.76437744,0.00011098,2]
[332088892,1720955432433,-1500.0,0.00011098,2]
[332088893,1720955432443,-1288.33484564,0.00011098,2]
[332088894,1720955432453,-269.0153369,0.00011098,2]
[332088895,1720955432463,-155.7663768,0.00011098,2]
[332088896,1720955432473,-200.13356851,0.00011098,2]
[332088897,1720955432482,-170.96506559,0.00011098,2]
[332088898,1720955432504,-99.09453866,0.00011098,2]
[332088899,1720955432514,-155.61384076,0.00011098,2]
[332088900,1720955432524,-156.06462613,0.00011098,2]
[332088901,1720955432534,-233.0278951,0.00011098,2]
[332088902,1720955432544,-3584.28543455,0.00011098,2]
[332088903,1720955432556,-2020.79631883,0.00011098,2]
[332088904,1720955432566,-722.16983721,0.00011098,2]
[332088905,1720955432576,-218.26308981,0.00011098,2]
[332088906,1720955432585,-546.16417229,0.00011098,2]
[332088907,1720955432595,-316.01466021,0.00011098,2]
[332088908,1720955432604,-167.34984429,0.00011098,2]
[332088909,1720955432614,-240.9401014,0.00011098,2]
[332088910,1720955432623,-400.0,0.00011098,2]
[332088911,1720955432633,-1986.35525885,0.00011098,2]
[332088912,1720955432642,-414.82996691,0.00011199,2]
[332088913,1720955432651,-282.01,0.00012088,2]
[332088914,1720955432662,-250.0,0.00012134,2]
[332088915,1720955432672,-200.0,0.00012178,2]
[332088916,1720955432681,-58.84364453,0.00012182,2]
[332088917,1720955432693,-133.15635547,0.00012182,2]
[332088918,1720955432703,-195.68096963,0.00012193,2]
[332088919,1720955432714,-224.31903037,0.00012193,2]
[332088920,1720955432723,-861.10130448,0.00012295,2]
[332088921,1720955432739,-138.89869552,0.00012295,2]
[332088922,1720955432749,-216.79811257,0.00012302,2]
[332088923,1720955432759,-155.0,0.00012314,2]
[332088924,1720955432768,-250.0,0.00012378,2]
[332088925,1720955432778,-4549.56887807,0.00012438,2]
[332088926,1720955432788,-59845.58400155,0.00012448,2]
[332088927,1720955432797,-302.65,0.00012506,2]
[332088928,1720955432807,-171.9,0.00012511,2]
[332088929,1720955432818,-299.99,0.00012511,2]
[332088930,1720955432827,-691.4,0.00012511,2]
[332088931,1720955432836,-290.95,0.00012534,2]
[332088932,1720955432846,-192.22,0.00012545,2]
[332088933,1720955432856,-499.99,0.00012545,2]
[332088934,1720955432865,-9568.2147764,0.00012548,2]
[332088935,1720955432877,-20707.7852236,0.00012548,2]
[332088936,1720955432887,-158.93,0.00012683,2]
[332088937,1720955432896,-281.1116,0.00012899,2]
[332088938,1720955432906,-1000.0,0.00012899,2]
[332088939,1720955432915,-269.1289,0.00012899,2]
[332088940,1720955432925,-10563.46067569,0.00012899,2]
[332088941,1720955432936,-882.1680325,0.00012899,2]
[332088942,1720955432948,-460.43123519,0.00012899,2]
[332088944,1720955433378,-1183.02,0.00012899,2]
[332088945,1720955433389,-51515.58237958,0.00012899,2]
[332088946,1720955433400,-10283.09270712,0.00012899,2]
[332088947,1720955433411,-2686.81035292,0.00012899,2]
[332088948,1720955433423,-658.25,0.00012899,2]
[332088949,1720955433446,-301.2900896,0.00012899,2]
[332088950,1720955433458,-14756.86235286,0.00012899,2]
[332088951,1720955433471,-943.09082566,0.00012899,2]
[332088952,1720955433483,-5765.94134888,0.00012899,2]
[332088953,1720955433493,-1250.0,0.00013,2]
[332088954,1720955433503,-178.44,0.00013048,2]
[332088955,1720955433513,-169.77,0.00013061,2]
[332088956,1720955433523,-587.0,0.00013398,2]
[332088957,1720955433533,-527.84072331,0.00013516,2]
[332088958,1720955433543,-1000.0,0.00013598,2]
[332088959,1720955433553,-306.21444093,0.00013616,2]
[332088960,1720955433564,-173.76636118,0.00013653,2]
[332088961,1720955433573,-500.0,0.00013698,2]
[332088962,1720955433586,-500.0,0.00013698,2]
[332088963,1720955433596,-500.0,0.00013698,2]
[332088964,1720955433605,-500.0,0.00013698,2]
[332088965,1720955433616,-500.0,0.00013698,2]
[332088966,1720955433626,-500.0,0.00013698,2]
[332088967,1720955433637,-500.0,0.00013698,2]
[332088968,1720955433647,-500.0,0.00013698,2]
[332088969,1720955433657,-500.0,0.00013698,2]
[332088970,1720955433667,-500.0,0.00013698,2]
[332088971,1720955433677,-500.0,0.00013698,2]
[332088972,1720955433687,-500.0,0.00013698,2]
[332088973,1720955433697,-500.0,0.00013698,2]
[332088974,1720955433706,-500.0,0.00013698,2]
[332088975,1720955433716,-500.0,0.00013698,2]
[332088976,1720955433726,-500.0,0.00013698,2]
[332088977,1720955433736,-500.0,0.00013698,2]
[332088978,1720955433746,-500.0,0.00013698,2]
[332088979,1720955433756,-500.0,0.00013698,2]
[332088980,1720955433765,-500.0,0.00013698,2]
[332088981,1720955433775,-500.0,0.00013698,2]
[332088982,1720955433785,-500.0,0.00013698,2]
[332088983,1720955433795,-500.0,0.00013698,2]
[332088984,1720955433805,-500.0,0.00013698,2]
[332088985,1720955433814,-538.39,0.00013698,2]
[332088986,1720955433824,-500.0,0.00013698,2]
[332088987,1720955433834,-500.0,0.00013698,2]
[332088988,1720955433844,-500.0,0.00013698,2]
[332088989,1720955433855,-500.0,0.00013698,2]
[332088990,1720955433865,-500.0,0.00013698,2]
[332088991,1720955433875,-500.0,0.00013698,2]
[332088992,1720955433884,-500.0,0.00013698,2]
[332088993,1720955433894,-500.0,0.00013698,2]
[332088994,1720955433904,-500.0,0.00013698,2]
[332088995,1720955433914,-500.0,0.00013698,2]
[332088996,1720955433924,-589.49,0.00013698,2]
[332088997,1720955433935,-500.0,0.00013698,2]
[332088998,1720955433944,-442.58131913,0.00013698,2]
[332088999,1720955433954,-500.0,0.00013698,2]
[332089000,1720955433963,-500.0,0.00013698,2]
[332089001,1720955433973,-500.0,0.00013698,2]
[332089002,1720955433983,-500.0,0.00013698,2]
[332089003,1720955433993,-500.0,0.00013698,2]
[332089004,1720955434003,-500.0,0.00013698,2]
[332089005,1720955434014,-500.0,0.00013698,2]
[332089006,1720955434024,-500.0,0.00013698,2]
[332089007,1720955434038,-500.0,0.00013698,2]
[332089008,1720955434047,-500.0,0.00013698,2]
[332089009,1720955434058,-500.0,0.00013698,2]
[332089010,1720955434068,-500.0,0.00013698,2]
[332089011,1720955434078,-500.0,0.00013698,2]
[332089012,1720955434087,-500.0,0.00013698,2]
[332089013,1720955434098,-500.0,0.00013698,2]
[332089014,1720955434108,-500.0,0.00013698,2]
[332089015,1720955434118,-500.0,0.00013698,2]
[332089016,1720955434128,-500.0,0.00013698,2]
[332089017,1720955434137,-500.0,0.00013698,2]
[332089018,1720955434147,-500.0,0.00013698,2]
[332089019,1720955434157,-500.0,0.00013698,2]
[332089020,1720955434167,-500.0,0.00013698,2]
[332089021,1720955434176,-500.0,0.00013698,2]
[332089022,1720955434186,-187.81649476,0.00013698,2]
[332089023,1720955434195,-500.0,0.00013698,2]
[332089024,1720955434205,-500.0,0.00013698,2]
[332089025,1720955434214,-500.0,0.00013698,2]
[332089026,1720955434223,-500.0,0.00013698,2]
[332089027,1720955434232,-530.68,0.00013698,2]
[332089028,1720955434242,-500.0,0.00013698,2]
[332089029,1720955434251,-500.0,0.00013698,2]
[332089030,1720955434262,-500.0,0.00013698,2]
[332089031,1720955434271,-500.0,0.00013698,2]
[332089032,1720955434281,-500.0,0.00013698,2]
[332089033,1720955434290,-500.0,0.00013698,2]
[332089034,1720955434300,-538.38638896,0.00013698,2]
[332089035,1720955434311,-500.0,0.00013698,2]
[332089036,1720955434322,-555.87,0.00013698,2]
[332089037,1720955434332,-500.0,0.00013698,2]
[332089038,1720955434341,-500.0,0.00013698,2]
[332089039,1720955434351,-500.0,0.00013698,2]
[332089040,1720955434361,-500.0,0.00013698,2]
[332089041,1720955434371,-500.0,0.00013698,2]
[332089042,1720955434381,-500.0,0.00013698,2]
[332089043,1720955434390,-500.0,0.00013698,2]
[332089044,1720955434400,-500.0,0.00013698,2]
[332089045,1720955434410,-500.0,0.00013698,2]
[332089046,1720955434419,-500.0,0.00013698,2]
[332089047,1720955434429,-500.0,0.00013698,2]
[332089048,1720955434439,-206.88,0.00013698,2]
[332089049,1720955434449,-500.0,0.00013698,2]
[332089050,1720955434458,-500.0,0.00013698,2]
[332089051,1720955434467,-500.0,0.00013698,2]
[332089052,1720955434477,-500.0,0.00013698,2]
[332089053,1720955434487,-500.0,0.00013698,2]
[332089054,1720955434496,-500.0,0.00013698,2]
[332089055,1720955434506,-500.0,0.00013698,2]
[332089056,1720955434516,-500.0,0.00013698,2]
[332089057,1720955434526,-500.0,0.00013698,2]
[332089058,1720955434535,-500.0,0.00013698,2]
[332089059,1720955434545,-500.0,0.00013698,2]
[332089060,1720955434554,-500.0,0.00013698,2]
[332089061,1720955434563,-500.0,0.00013698,2]
[332089062,1720955434573,-500.0,0.00013698,2]
[332089063,1720955434582,-500.0,0.00013698,2]
[332089064,1720955434591,-500.0,0.00013698,2]
[332089065,1720955434600,-500.0,0.00013698,2]
[332089066,1720955434610,-500.0,0.00013698,2]
[332089067,1720955434619,-500.0,0.00013698,2]
[332089068,1720955434629,-500.0,0.00013698,2]
[332089069,1720955434638,-621.94400833,0.00013698,2]
[332089070,1720955434647,-500.0,0.00013698,2]
[332089071,1720955434657,-500.0,0.00013698,2]
[332089072,1720955434666,-211.04707496,0.00013698,2]
[332089073,1720955434676,-500.0,0.00013698,2]
[332089074,1720955434685,-500.0,0.00013698,2]
[332089075,1720955434694,-500.0,0.00013698,2]
[332089076,1720955434704,-500.0,0.00013698,2]
[332089077,1720955434713,-500.0,0.00013698,2]
[332089078,1720955434723,-500.0,0.00013698,2]
[332089079,1720955434732,-500.0,0.00013698,2]
[332089080,1720955434741,-500.0,0.00013698,2]
[332089081,1720955434751,-500.0,0.00013698,2]
[332089082,1720955434761,-500.0,0.00013698,2]
[332089083,1720955434771,-500.0,0.00013698,2]
[332089084,1720955434781,-500.0,0.00013698,2]
[332089085,1720955434791,-500.0,0.00013698,2]
[332089086,1720955434800,-500.0,0.00013698,2]
[332089087,1720955434811,-500.0,0.00013698,2]
[332089088,1720955434820,-500.0,0.00013698,2]
[332089089,1720955434829,-500.0,0.00013698,2]
[332089090,1720955434838,-500.0,0.00013698,2]
[332089091,1720955434847,-500.0,0.00013698,2]
[332089092,1720955434856,-500.0,0.00013698,2]
[332089093,1720955434866,-500.0,0.00013698,2]
[332089094,1720955434875,-569.38,0.00013698,2]
[332089095,1720955434885,-500.0,0.00013698,2]
[332089096,1720955434894,-574.78,0.00013698,2]
[332089097,1720955434904,-500.0,0.00013698,2]
[332089098,1720955434914,-500.0,0.00013698,2]
[332089099,1720955434923,-500.0,0.00013698,2]
[332089100,1720955434933,-500.0,0.00013698,2]
[332089101,1720955434942,-500.0,0.00013698,2]
[332089102,1720955434952,-500.0,0.00013698,2]
[332089103,1720955434962,-500.0,0.00013698,2]
[332089104,1720955434971,-500.0,0.00013698,2]
[332089105,1720955434980,-500.0,0.00013698,2]
[332089106,1720955434990,-500.0,0.00013698,2]
[332089107,1720955434999,-500.0,0.00013698,2]
[332089108,1720955435009,-500.0,0.00013698,2]
[332089109,1720955435018,-525.34838045,0.00013698,2]
[332089110,1720955435029,-500.0,0.00013698,2]
[332089111,1720955435040,-500.0,0.00013698,2]
[332089112,1720955435049,-500.0,0.00013698,2]
[332089113,1720955435058,-500.0,0.00013698,2]
[332089114,1720955435067,-500.0,0.00013698,2]
[332089115,1720955435077,-500.0,0.00013698,2]
[332089116,1720955435087,-506.6,0.00013698,2]
[332089117,1720955435096,-500.0,0.00013698,2]
[332089118,1720955435106,-500.0,0.00013698,2]
[332089119,1720955435116,-500.0,0.00013698,2]
[332089120,1720955435125,-500.0,0.00013698,2]
[332089121,1720955435134,-500.0,0.00013698,2]
[332089122,1720955435143,-500.0,0.00013698,2]
[332089123,1720955435153,-500.0,0.00013698,2]
[332089124,1720955435162,-500.0,0.00013698,2]
[332089125,1720955435172,-500.0,0.00013698,2]
[332089126,1720955435181,-500.0,0.00013698,2]
[332089127,1720955435190,-500.0,0.00013698,2]
[332089128,1720955435200,-500.0,0.00013698,2]
[332089129,1720955435209,-500.0,0.00013698,2]
[332089130,1720955435219,-500.0,0.00013698,2]
[332089131,1720955435228,-521.3,0.00013698,2]
[332089132,1720955435237,-500.0,0.00013698,2]
[332089133,1720955435247,-500.0,0.00013698,2]
[332089134,1720955435256,-500.0,0.00013698,2]
[332089135,1720955435265,-500.0,0.00013698,2]
[332089136,1720955435275,-598.12,0.00013698,2]
[332089137,1720955435284,-307.54970997,0.00013698,2]
[332089138,1720955435294,-500.0,0.00013698,2]
[332089139,1720955435304,-500.0,0.00013698,2]
[332089140,1720955435314,-500.0,0.00013698,2]
[332089141,1720955435324,-500.0,0.00013698,2]
[332089142,1720955435334,-500.0,0.00013698,2]
[332089143,1720955435343,-2444.8,0.00013698,2]
[332089144,1720955435353,-500.0,0.00013698,2]
[332089145,1720955435363,-500.0,0.00013698,2]
[332089146,1720955435373,-500.0,0.00013698,2]
[332089147,1720955435382,-500.0,0.00013698,2]
[332089148,1720955435392,-500.0,0.00013698,2]
[332089149,1720955435401,-267.78587491,0.00013698,2]
[332089150,1720955435411,-500.0,0.00013698,2]
[332089151,1720955435420,-500.0,0.00013698,2]
[332089152,1720955435429,-500.0,0.00013698,2]
[332089153,1720955435440,-500.0,0.00013698,2]
[332089154,1720955435449,-500.0,0.00013698,2]
[332089155,1720955435459,-500.0,0.00013698,2]
[332089156,1720955435468,-500.0,0.00013698,2]
[332089157,1720955435479,-518.63,0.00013698,2]
[332089158,1720955435489,-500.0,0.00013698,2]
[332089159,1720955435498,-500.0,0.00013698,2]
[332089160,1720955435509,-500.0,0.00013698,2]
[332089161,1720955435519,-552.13,0.00013698,2]
[332089162,1720955435530,-572.28,0.00013698,2]
[332089163,1720955435540,-500.0,0.00013698,2]
[332089164,1720955435550,-500.0,0.00013698,2]
[332089165,1720955435560,-995.61,0.00013698,2]
[332089166,1720955435570,-500.0,0.00013698,2]
[332089167,1720955435579,-500.0,0.00013698,2]
[332089168,1720955435588,-500.0,0.00013698,2]
[332089169,1720955435598,-594.86289645,0.00013698,2]
[332089170,1720955435607,-500.0,0.00013698,2]
[332089171,1720955435616,-500.0,0.00013698,2]
[332089172,1720955435625,-500.0,0.00013698,2]
[332089173,1720955435635,-500.0,0.00013698,2]
[332089174,1720955435644,-500.0,0.00013698,2]
[332089175,1720955435653,-500.0,0.00013698,2]
[332089176,1720955435663,-500.0,0.00013698,2]
[332089177,1720955435672,-500.0,0.00013698,2]
[332089178,1720955435681,-537.83,0.00013698,2]
[332089179,1720955435690,-500.0,0.00013698,2]
[332089180,1720955435699,-500.0,0.00013698,2]
[332089181,1720955435709,-500.0,0.00013698,2]
[332089182,1720955435718,-500.0,0.00013698,2]
[332089183,1720955435727,-500.0,0.00013698,2]
[332089184,1720955435736,-500.0,0.00013698,2]
[332089185,1720955435745,-500.0,0.00013698,2]
[332089186,1720955435755,-500.76,0.00013698,2]
[332089187,1720955435765,-500.0,0.00013698,2]
[332089188,1720955435774,-500.0,0.00013698,2]
[332089189,1720955435783,-500.0,0.00013698,2]
[332089190,1720955435792,-500.0,0.00013698,2]
[332089191,1720955435801,-372.8611598,0.00013698,2]
[332089192,1720955435811,-500.0,0.00013698,2]
[332089193,1720955435820,-500.0,0.00013698,2]
[332089194,1720955435829,-500.0,0.00013698,2]
[332089195,1720955435839,-500.0,0.00013698,2]
[332089196,1720955435849,-500.0,0.00013698,2]
[332089197,1720955435860,-500.0,0.00013698,2]
[332089198,1720955435870,-500.0,0.00013698,2]
[332089199,1720955435879,-500.0,0.00013698,2]
[332089200,1720955435890,-500.0,0.00013698,2]
[332089201,1720955435899,-1125.24,0.00013698,2]
[332089202,1720955435909,-500.0,0.00013698,2]
[332089203,1720955435919,-500.0,0.00013698,2]
[332089204,1720955435929,-500.0,0.00013698,2]
[332089205,1720955435938,-500.0,0.00013698,2]
[332089206,1720955435948,-500.0,0.00013698,2]
[332089207,1720955435958,-500.0,0.00013698,2]
[332089208,1720955435968,-1605.47,0.00013698,2]
[332089209,1720955435978,-528.02,0.00013698,2]
[332089210,1720955435987,-500.0,0.00013698,2]
[332089212,1720955435997,-551.9,0.00013698,2]
[332089213,1720955436006,-518.74,0.00013698,2]
[332089215,1720955436015,-719.1,0.00013698,2]
[332089216,1720955436025,-500.0,0.00013698,2]
[332089217,1720955436037,-722.42,0.00013698,2]
[332089218,1720955436047,-500.0,0.00013698,2]
[332089219,1720955436056,-500.0,0.00013698,2]
[332089220,1720955436065,-500.0,0.00013698,2]
[332089221,1720955436075,-500.0,0.00013698,2]
[332089222,1720955436084,-500.0,0.00013698,2]
[332089223,1720955436093,-500.0,0.00013698,2]
[332089224,1720955436106,-500.0,0.00013698,2]
[332089225,1720955436119,-500.0,0.00013698,2]
[332089226,1720955436131,-587.88,0.00013698,2]
[332089227,1720955436142,-500.0,0.00013698,2]
[332089228,1720955436153,-500.0,0.00013698,2]
[332089229,1720955436163,-1441.96,0.00013698,2]
[332089230,1720955436174,-500.0,0.00013698,2]
[332089231,1720955436185,-500.0,0.00013698,2]
[332089232,1720955436196,-500.0,0.00013698,2]
[332089233,1720955436206,-500.0,0.00013698,2]
[332089234,1720955436216,-289.80692457,0.00013698,2]
[332089235,1720955436226,-500.0,0.00013698,2]
[332089236,1720955436235,-500.0,0.00013698,2]
[332089237,1720955436245,-2208.77,0.00013698,2]
[332089238,1720955436255,-500.0,0.00013698,2]
[332089239,1720955436264,-500.0,0.00013698,2]
[332089240,1720955436274,-803.23,0.00013698,2]
[332089241,1720955436283,-500.0,0.00013698,2]
[332089242,1720955436293,-500.0,0.00013698,2]
[332089243,1720955436302,-500.0,0.00013698,2]
[332089244,1720955436312,-586.26,0.00013698,2]
[332089245,1720955436322,-500.0,0.00013698,2]
[332089246,1720955436331,-500.0,0.00013698,2]
[332089247,1720955436341,-500.0,0.00013698,2]
[332089248,1720955436352,-539.28,0.00013698,2]
[332089249,1720955436361,-500.0,0.00013698,2]
[332089250,1720955436371,-500.0,0.00013698,2]
[332089251,1720955436381,-500.0,0.00013698,2]
[332089252,1720955436390,-500.0,0.00013698,2]
[332089253,1720955436400,-500.0,0.00013698,2]
[332089254,1720955436409,-500.0,0.00013698,2]
[332089255,1720955436419,-500.0,0.00013698,2]
[332089256,1720955436428,-1630.77,0.00013698,2]
[332089257,1720955436437,-500.0,0.00013698,2]
[332089258,1720955436447,-500.0,0.00013698,2]
[332089259,1720955436457,-500.0,0.00013698,2]
[332089260,1720955436466,-541.72,0.00013698,2]
[332089261,1720955436476,-500.0,0.00013698,2]
[332089262,1720955436485,-500.0,0.00013698,2]
[332089263,1720955436495,-500.0,0.00013698,2]
[332089264,1720955436504,-500.0,0.00013698,2]
[332089265,1720955436514,-559.8,0.00013698,2]
[332089266,1720955436523,-500.0,0.00013698,2]
[332089267,1720955436534,-515.48,0.00013698,2]
[332089268,1720955436544,-500.0,0.00013698,2]
[332089269,1720955436554,-500.0,0.00013698,2]
[332089270,1720955436564,-500.0,0.00013698,2]
[332089271,1720955436574,-500.0,0.00013698,2]
[332089272,1720955436583,-500.0,0.00013698,2]
[332089273,1720955436593,-500.0,0.00013698,2]
[332089274,1720955436602,-500.0,0.00013698,2]
[332089275,1720955436612,-500.0,0.00013698,2]
[332089276,1720955436621,-500.0,0.00013698,2]
[332089277,1720955436630,-500.0,0.00013698,2]
[332089278,1720955436639,-500.0,0.00013698,2]
[332089279,1720955436648,-500.0,0.00013698,2]
[332089280,1720955436658,-500.0,0.00013698,2]
[332089281,1720955436667,-500.0,0.00013698,2]
[332089282,1720955436678,-500.0,0.00013698,2]
[332089283,1720955436687,-500.0,0.00013698,2]
[332089284,1720955436697,-500.0,0.00013698,2]
[332089285,1720955436707,-500.0,0.00013698,2]
[332089286,1720955436717,-500.0,0.00013698,2]
[332089287,1720955436729,-500.0,0.00013698,2]
[332089288,1720955436740,-500.0,0.00013698,2]
[332089289,1720955436751,-251.97,0.00013699,2]
[332089290,1720955436762,-220.67,0.00013699,2]
[332089291,1720955436773,-192.0,0.00013705,2]
[332089292,1720955436784,-161.56209817,0.00013707,2]
[332089293,1720955436794,-201.44812734,0.00013708,2]
[332089294,1720955436804,-500.0,0.00013716,2]
[332089295,1720955436816,-500.0,0.00013716,2]
[332089296,1720955436826,-101529.0577,0.00013717,2]
[332089297,1720955436838,-186.40907942,0.00013743,2]
[332089298,1720955436847,-500.0,0.00013753,2]
[332089299,1720955436857,-500.0,0.00013753,2]
[332089300,1720955436867,-452.18360587,0.00013753,2]
[332089301,1720955436876,-500.0,0.00013753,2]
[332089302,1720955436886,-500.0,0.00013753,2]
[332089303,1720955436895,-500.0,0.00013753,2]
[332089304,1720955436906,-500.0,0.00013753,2]
[332089305,1720955436917,-500.0,0.00013753,2]
[332089306,1720955436928,-500.0,0.00013753,2]
[332089307,1720955436940,-500.0,0.00013753,2]
[332089308,1720955436950,-500.0,0.00013753,2]
[332089309,1720955436960,-500.0,0.00013753,2]
[332089310,1720955436970,-500.0,0.00013753,2]
[332089311,1720955436981,-500.0,0.00013753,2]
[332089312,1720955436992,-500.0,0.00013753,2]
[332089313,1720955437004,-500.0,0.00013753,2]
[332089314,1720955437014,-500.0,0.00013753,2]
[332089315,1720955437023,-500.0,0.00013753,2]
[332089316,1720955437035,-500.0,0.00013753,2]
[332089317,1720955437047,-500.0,0.00013753,2]
[332089318,1720955437058,-500.0,0.00013753,2]
[332089319,1720955437068,-500.0,0.00013753,2]